[Event "*** Titled Tuesday 3|2 Blitz"]
[Site "Chess.com"]
[Date "2017.05.02"]
[Round "1"]
[White "AkshatChandra"]
[Black "rubhani"]
[Result "1-0"]
[WhiteElo "2752"]
[BlackElo "2391"]
[TimeControl "180+2"]
[EndTime "13:06:38 PDT"]
[Termination "AkshatChandra won by resignation"]

1. d4 {[%clk 0:03:00.4]} 1... Nf6 {[%clk 0:03:00.3]} 2. Nf3 {[%clk 0:03:00.9]}
2... e6 {[%clk 0:03:01.6]} 3. Bf4 {[%clk 0:03:01.5]} 3... d5 {[%clk 0:03:02]} 4.
e3 {[%clk 0:03:02.5]} 4... Bd6 {[%clk 0:03:03.1]} 5. Bg3 {[%clk 0:03:02.9]} 5...
O-O {[%clk 0:03:03.6]} 6. Nbd2 {[%clk 0:03:01.5]} 6... c5 {[%clk 0:02:52.2]} 7.
c3 {[%clk 0:03:02]} 7... Nc6 {[%clk 0:02:52.7]} 8. Bb5 {[%clk 0:03:01.4]} 8...
Bxg3 {[%clk 0:02:43.5]} 9. hxg3 {[%clk 0:03:02]} 9... Qb6 {[%clk 0:02:44.9]} 10.
Bxc6 {[%clk 0:03:02.1]} 10... bxc6 {[%clk 0:02:45.4]} 11. Qc2 {[%clk 0:03:03.1]}
11... Ba6 {[%clk 0:02:45]} 12. Rb1 {[%clk 0:02:42.7]} 12... h6 {[%clk
0:02:37.6]} 13. b4 {[%clk 0:02:37.6]} 13... cxd4 {[%clk 0:02:24.6]} 14. exd4
{[%clk 0:02:11.6]} 14... Nd7 {[%clk 0:02:22.9]} 15. Nb3 {[%clk 0:02:00.3]} 15...
Rfe8 {[%clk 0:02:14.1]} 16. Nc5 {[%clk 0:01:57.8]} 16... Nxc5 {[%clk 0:02:12.7]}
17. bxc5 {[%clk 0:01:58.1]} 17... Qa5 {[%clk 0:02:10.7]} 18. Ne5 {[%clk
0:01:56.5]} 18... Rac8 {[%clk 0:02:05.9]} 19. f3 {[%clk 0:01:49]} 19... f6
{[%clk 0:02:00.7]} 20. Ng4 {[%clk 0:01:49.9]} 20... e5 {[%clk 0:01:39.1]} 21.
Nxf6+ {[%clk 0:01:41.8]} 21... Kf7 {[%clk 0:01:39.7]} 22. Nxe8 {[%clk
0:01:39.5]} 22... Rxe8 {[%clk 0:01:40.6]} 23. Kf2 {[%clk 0:01:35.3]} 23... exd4
{[%clk 0:01:41.2]} 24. Qf5+ {[%clk 0:01:10.5]} 24... Kg8 {[%clk 0:01:40.7]} 25.
Rhe1 {[%clk 0:01:11.9]} 25... Rf8 {[%clk 0:01:30.7]} 26. Qe6+ {[%clk 0:01:12.5]}
26... Kh8 {[%clk 0:01:31.4]} 27. cxd4 {[%clk 0:01:11.5]} 27... Qd2+ {[%clk
0:01:30.4]} 28. Kg1 {[%clk 0:01:10.7]} 28... Qxd4+ {[%clk 0:01:31.4]} 29. Qe3
{[%clk 0:01:11]} 29... Qf6 {[%clk 0:01:29.5]} 30. Rbd1 {[%clk 0:01:07.6]} 30...
Bc4 {[%clk 0:01:29.1]} 31. a3 {[%clk 0:01:08.2]} 31... Rb8 {[%clk 0:01:20.8]}
32. Rd2 {[%clk 0:01:06.5]} 32... Rb3 {[%clk 0:01:16.3]} 33. Qe6 {[%clk 0:01:04]}
33... Qc3 {[%clk 0:01:13.4]} 34. Qc8+ {[%clk 0:00:47.7]} 1-0

[Event "*** Titled Tuesday 3|2 Blitz"]
[Site "Chess.com"]
[Date "2017.05.02"]
[Round "1"]
[White "Cayse"]
[Black "evgenyermolaev"]
[Result "1-0"]
[WhiteElo "2658"]
[BlackElo "2355"]
[TimeControl "180+2"]
[EndTime "13:06:48 PDT"]
[Termination "Cayse won by resignation"]

1. e4 {[%clk 0:03:02]} 1... c5 {[%clk 0:03:00.4]} 2. Nf3 {[%clk 0:03:02.3]} 2...
d6 {[%clk 0:03:01.4]} 3. Bb5+ {[%clk 0:03:01]} 3... Nd7 {[%clk 0:03:02]} 4. O-O
{[%clk 0:03:00.2]} 4... a6 {[%clk 0:03:02.7]} 5. Bd3 {[%clk 0:03:00.2]} 5...
Ngf6 {[%clk 0:02:55.6]} 6. c3 {[%clk 0:03:00.9]} 6... e6 {[%clk 0:02:56.8]} 7.
Qe2 {[%clk 0:03:01.1]} 7... Be7 {[%clk 0:02:52.7]} 8. Bc2 {[%clk 0:03:01.8]}
8... O-O {[%clk 0:02:44]} 9. d4 {[%clk 0:03:01.4]} 9... b5 {[%clk 0:02:24.4]}
10. a4 {[%clk 0:02:59.4]} 10... Bb7 {[%clk 0:02:23.9]} 11. Nbd2 {[%clk
0:02:58.1]} 11... Rc8 {[%clk 0:02:19]} 12. axb5 {[%clk 0:02:57]} 12... axb5
{[%clk 0:02:06.2]} 13. Qxb5 {[%clk 0:02:57]} 13... Qc7 {[%clk 0:01:39.4]} 14.
Qe2 {[%clk 0:02:46.1]} 14... cxd4 {[%clk 0:01:35.1]} 15. Nxd4 {[%clk 0:02:46.3]}
15... d5 {[%clk 0:01:21.6]} 16. Re1 {[%clk 0:02:41.6]} 16... Bc5 {[%clk
0:01:08.3]} 17. N4b3 {[%clk 0:02:28.3]} 17... Qb6 {[%clk 0:00:58.4]} 18. e5
{[%clk 0:02:09.8]} 18... Ne4 {[%clk 0:00:55.2]} 19. Nxe4 {[%clk 0:02:07.9]}
19... dxe4 {[%clk 0:00:55.5]} 20. Nxc5 {[%clk 0:01:18.2]} 20... Nxc5 {[%clk
0:00:53.6]} 21. b4 {[%clk 0:01:16.1]} 21... Nd3 {[%clk 0:00:31.1]} 22. Bxd3
{[%clk 0:01:13]} 22... exd3 {[%clk 0:00:33]} 23. Qxd3 {[%clk 0:01:14.1]} 23...
Qc6 {[%clk 0:00:34.2]} 24. Qg3 {[%clk 0:01:14.6]} 24... Qxc3 {[%clk 0:00:32.5]}
25. Be3 {[%clk 0:01:14.8]} 25... Kh8 {[%clk 0:00:26.2]} 26. Bc5 {[%clk
0:01:09.1]} 26... Rfd8 {[%clk 0:00:21.6]} 27. Qxc3 {[%clk 0:01:09.1]} 1-0

[Event "*** Titled Tuesday 3|2 Blitz"]
[Site "Chess.com"]
[Date "2017.05.02"]
[Round "1"]
[White "GamayevOleg"]
[Black "Lawliet64"]
[Result "1-0"]
[WhiteElo "2425"]
[BlackElo "1998"]
[TimeControl "180+2"]
[EndTime "13:07:06 PDT"]
[Termination "GamayevOleg won by checkmate"]

1. d3 {[%clk 0:02:58.9]} 1... Nf6 {[%clk 0:02:52.2]} 2. e4 {[%clk 0:03:00.8]}
2... d6 {[%clk 0:02:44.5]} 3. Nf3 {[%clk 0:03:01.2]} 3... c5 {[%clk 0:02:45.9]}
4. Be2 {[%clk 0:03:01.8]} 4... g6 {[%clk 0:02:47.2]} 5. c3 {[%clk 0:03:03.4]}
5... Bg7 {[%clk 0:02:48.5]} 6. a4 {[%clk 0:03:05.3]} 6... O-O {[%clk 0:02:49.7]}
7. O-O {[%clk 0:03:07.2]} 7... Nc6 {[%clk 0:02:50.9]} 8. h3 {[%clk 0:03:07.5]}
8... a6 {[%clk 0:02:52]} 9. Qc2 {[%clk 0:03:08.8]} 9... Rb8 {[%clk 0:02:53.2]}
10. Rd1 {[%clk 0:03:10.4]} 10... b5 {[%clk 0:02:54.5]} 11. axb5 {[%clk
0:03:12.3]} 11... axb5 {[%clk 0:02:55.9]} 12. d4 {[%clk 0:03:14.2]} 12... Qc7
{[%clk 0:02:53.4]} 13. dxc5 {[%clk 0:03:14.8]} 13... dxc5 {[%clk 0:02:53.9]} 14.
Be3 {[%clk 0:03:16.4]} 14... c4 {[%clk 0:02:47.7]} 15. Nbd2 {[%clk 0:03:16]}
15... Be6 {[%clk 0:02:48.5]} 16. Nd4 {[%clk 0:03:16.7]} 16... Nxd4 {[%clk
0:02:47.3]} 17. Bxd4 {[%clk 0:03:18.6]} 17... Rb7 {[%clk 0:02:44.1]} 18. Nf3
{[%clk 0:03:16.9]} 18... Rc8 {[%clk 0:02:42]} 19. Ra6 {[%clk 0:03:11.3]} 19...
b4 {[%clk 0:02:41.9]} 20. Rda1 {[%clk 0:03:10.9]} 20... bxc3 {[%clk 0:02:36.1]}
21. bxc3 {[%clk 0:03:09.5]} 21... Rcb8 {[%clk 0:02:37]} 22. Ra8 {[%clk
0:03:09.8]} 22... Nd7 {[%clk 0:02:34.5]} 23. Bxg7 {[%clk 0:03:09.7]} 23... Kxg7
{[%clk 0:02:34.7]} 24. Rxb8 {[%clk 0:03:10.9]} 24... Qxb8 {[%clk 0:02:33.4]} 25.
Nd4 {[%clk 0:03:12]} 25... Rb2 {[%clk 0:02:30.3]} 26. Nxe6+ {[%clk 0:03:08.9]}
26... fxe6 {[%clk 0:02:30.1]} 27. Qd1 {[%clk 0:03:10.8]} 27... Ne5 {[%clk
0:02:29.9]} 28. Bf1 {[%clk 0:02:29]} 28... Qb6 {[%clk 0:02:27.4]} 29. Qd4 {[%clk
0:02:19.4]} 29... Qxd4 {[%clk 0:02:22.5]} 30. cxd4 {[%clk 0:02:21.3]} 30... Nd3
{[%clk 0:02:24]} 31. Bxd3 {[%clk 0:02:22.3]} 31... cxd3 {[%clk 0:02:25.5]} 32.
Rd1 {[%clk 0:02:23.9]} 32... d2 {[%clk 0:02:26.2]} 33. Kf1 {[%clk 0:02:25]}
33... e5 {[%clk 0:02:26.6]} 34. d5 {[%clk 0:02:25.5]} 34... e6 {[%clk
0:02:26.5]} 35. dxe6 {[%clk 0:02:16.6]} 35... Kf6 {[%clk 0:02:27.5]} 36. Ke2
{[%clk 0:02:17.5]} 36... Kxe6 {[%clk 0:02:25.8]} 37. Rxd2 {[%clk 0:02:18.7]}
37... Rb6 {[%clk 0:02:26.4]} 38. Ra2 {[%clk 0:02:17.4]} 38... Rc6 {[%clk
0:02:26.1]} 39. Kd3 {[%clk 0:02:17.2]} 39... Rd6+ {[%clk 0:02:27.4]} 40. Ke3
{[%clk 0:02:18.4]} 40... Rc6 {[%clk 0:02:28.8]} 41. Ra3 {[%clk 0:02:19.8]} 41...
Rb6 {[%clk 0:02:29.8]} 42. g3 {[%clk 0:02:20.4]} 42... Rc6 {[%clk 0:02:30.2]}
43. h4 {[%clk 0:02:21.7]} 43... h6 {[%clk 0:02:30.8]} 44. f4 {[%clk 0:02:20.2]}
44... Rb6 {[%clk 0:02:30.1]} 45. fxe5 {[%clk 0:02:18.3]} 45... Kxe5 {[%clk
0:02:30.1]} 46. Ra5+ {[%clk 0:02:19.7]} 46... Ke6 {[%clk 0:02:31.2]} 47. Kf4
{[%clk 0:02:21.1]} 47... Rc6 {[%clk 0:02:30.8]} 48. g4 {[%clk 0:02:22.1]} 48...
Rb6 {[%clk 0:02:30.9]} 49. g5 {[%clk 0:02:22.7]} 49... h5 {[%clk 0:02:31]} 50.
Rc5 {[%clk 0:02:18.2]} 50... Ra6 {[%clk 0:02:31]} 51. Rb5 {[%clk 0:02:18.8]}
51... Rc6 {[%clk 0:02:31.8]} 52. Rb8 {[%clk 0:02:16.4]} 52... Ra6 {[%clk
0:02:29.6]} 53. Rf8 {[%clk 0:02:15.6]} 53... Ke7 {[%clk 0:02:30.5]} 54. Rg8
{[%clk 0:02:11]} 54... Kf7 {[%clk 0:02:29.9]} 55. Rd8 {[%clk 0:02:10.2]} 55...
Ra1 {[%clk 0:02:29.9]} 56. Rd6 {[%clk 0:02:05.3]} 56... Rh1 {[%clk 0:02:26.9]}
57. Ke5 {[%clk 0:02:05.7]} 57... Rxh4 {[%clk 0:02:27.2]} 58. Rd7+ {[%clk
0:02:07.2]} 58... Ke8 {[%clk 0:02:26.8]} 59. Rg7 {[%clk 0:02:08.4]} 59... Rg4
{[%clk 0:02:26.8]} 60. Rxg6 {[%clk 0:02:09.9]} 60... h4 {[%clk 0:02:28.4]} 61.
Kf5 {[%clk 0:02:11.1]} 61... Rg1 {[%clk 0:02:26.8]} 62. Rh6 {[%clk 0:02:12.4]}
62... Rf1+ {[%clk 0:02:28.3]} 63. Ke6 {[%clk 0:02:14]} 63... Kf8 {[%clk
0:02:27.7]} 64. Rxh4 {[%clk 0:02:15.4]} 64... Kg7 {[%clk 0:02:28.3]} 65. Rh6
{[%clk 0:02:16.3]} 65... Rg1 {[%clk 0:02:28.6]} 66. e5 {[%clk 0:02:17.6]} 66...
Rxg5 {[%clk 0:02:29.5]} 67. Rf6 {[%clk 0:02:19.5]} 67... Rg1 {[%clk 0:02:30]}
68. Rf2 {[%clk 0:02:20.8]} 68... Ra1 {[%clk 0:02:31]} 69. Rd2 {[%clk 0:02:19.2]}
69... Ra6+ {[%clk 0:02:23.1]} 70. Ke7 {[%clk 0:02:17.5]} 70... Kg8 {[%clk
0:02:21.9]} 71. e6 {[%clk 0:02:16.1]} 71... Ra1 {[%clk 0:02:22.5]} 72. Rg2+
{[%clk 0:02:17]} 72... Kh7 {[%clk 0:02:22]} 73. Kf7 {[%clk 0:02:18.4]} 73...
Rf1+ {[%clk 0:02:23.4]} 74. Ke8 {[%clk 0:02:19.8]} 74... Ra1 {[%clk 0:02:21.1]}
75. e7 {[%clk 0:02:20.6]} 75... Ra8+ {[%clk 0:02:22.4]} 76. Kf7 {[%clk
0:02:21.1]} 76... Ra7 {[%clk 0:02:23.1]} 77. Rh2# {[%clk 0:02:22.1]} 1-0

[Event "*** Titled Tuesday 3|2 Blitz"]
[Site "Chess.com"]
[Date "2017.05.02"]
[Round "1"]
[White "JSMastropiero"]
[Black "Iball95"]
[Result "0-1"]
[WhiteElo "2209"]
[BlackElo "2505"]
[TimeControl "180+2"]
[EndTime "13:07:08 PDT"]
[Termination "Iball95 won by resignation"]

1. d4 {[%clk 0:02:59.4]} 1... Nf6 {[%clk 0:02:56.2]} 2. c4 {[%clk 0:02:59.7]}
2... e6 {[%clk 0:02:57]} 3. Nc3 {[%clk 0:03:00.1]} 3... Bb4 {[%clk 0:02:58.3]}
4. e3 {[%clk 0:03:01.2]} 4... O-O {[%clk 0:02:59.2]} 5. Ne2 {[%clk 0:03:02]}
5... c6 {[%clk 0:03:00.5]} 6. a3 {[%clk 0:03:02]} 6... Ba5 {[%clk 0:03:01.9]} 7.
Ng3 {[%clk 0:02:55.5]} 7... d5 {[%clk 0:03:02.3]} 8. cxd5 {[%clk 0:02:52.4]}
8... exd5 {[%clk 0:02:56.3]} 9. Bd3 {[%clk 0:02:52]} 9... Bc7 {[%clk 0:02:51.6]}
10. O-O {[%clk 0:02:47.1]} 10... a5 {[%clk 0:02:52.1]} 11. Bd2 {[%clk
0:02:31.1]} 11... Nbd7 {[%clk 0:02:52.1]} 12. Rc1 {[%clk 0:02:18.8]} 12... Re8
{[%clk 0:02:46.2]} 13. f4 {[%clk 0:02:14.9]} 13... b5 {[%clk 0:02:28.2]} 14. Qf3
{[%clk 0:02:08.2]} 14... Nb6 {[%clk 0:02:26.4]} 15. b3 {[%clk 0:01:58.7]} 15...
Bg4 {[%clk 0:02:20.7]} 16. Qf2 {[%clk 0:01:58.9]} 16... Bd7 {[%clk 0:02:21.6]}
17. h3 {[%clk 0:01:49.9]} 17... a4 {[%clk 0:02:21.6]} 18. b4 {[%clk 0:01:46.1]}
18... Nc4 {[%clk 0:02:20.4]} 19. Bxc4 {[%clk 0:01:46.9]} 19... bxc4 {[%clk
0:02:22.3]} 20. Rce1 {[%clk 0:01:38.5]} 20... h6 {[%clk 0:02:07]} 21. e4 {[%clk
0:01:35.1]} 21... dxe4 {[%clk 0:02:08.9]} 22. Ngxe4 {[%clk 0:01:35.9]} 22...
Nxe4 {[%clk 0:02:04.6]} 23. Nxe4 {[%clk 0:01:36.9]} 23... Be6 {[%clk 0:01:54.6]}
24. f5 {[%clk 0:01:33.5]} 24... Bd5 {[%clk 0:01:55.4]} 25. Nc3 {[%clk
0:01:29.5]} 25... Qd6 {[%clk 0:01:38.1]} 26. Bf4 {[%clk 0:01:14.7]} 26... Qxf4
{[%clk 0:01:33.7]} 27. Rxe8+ {[%clk 0:01:15.4]} 27... Rxe8 {[%clk 0:01:34.9]}
28. Qxf4 {[%clk 0:01:17]} 28... Bxf4 {[%clk 0:01:36.8]} 29. Rxf4 {[%clk
0:01:18]} 29... Re3 {[%clk 0:01:38.4]} 30. Nxa4 {[%clk 0:01:09.2]} 30... Rxa3
{[%clk 0:01:38.8]} 31. Nb6 {[%clk 0:00:51.7]} 31... Ra1+ {[%clk 0:01:35.2]} 32.
Kh2 {[%clk 0:00:48.8]} 32... c3 {[%clk 0:01:19.2]} 33. Rf2 {[%clk 0:00:46.2]}
33... Ra2 {[%clk 0:01:19.5]} 34. Rf1 {[%clk 0:00:42.7]} 34... Rxg2+ {[%clk
0:01:19.2]} 0-1

[Event "*** Titled Tuesday 3|2 Blitz"]
[Site "Chess.com"]
[Date "2017.05.02"]
[Round "1"]
[White "Msb2"]
[Black "pedromartinez91"]
[Result "1-0"]
[WhiteElo "2568"]
[BlackElo "2301"]
[TimeControl "180+2"]
[EndTime "13:07:25 PDT"]
[Termination "Msb2 won on time"]

1. d4 {[%clk 0:03:02]} 1... d5 {[%clk 0:03:00.5]} 2. c4 {[%clk 0:03:02.9]} 2...
e6 {[%clk 0:03:01.3]} 3. Nc3 {[%clk 0:03:01.6]} 3... Be7 {[%clk 0:03:02.2]} 4.
Nf3 {[%clk 0:03:01.4]} 4... Nf6 {[%clk 0:03:02.8]} 5. Qc2 {[%clk 0:03:00.4]}
5... O-O {[%clk 0:03:03]} 6. Bg5 {[%clk 0:03:00.8]} 6... c5 {[%clk 0:02:53.6]}
7. dxc5 {[%clk 0:02:56.6]} 7... Qa5 {[%clk 0:02:37.3]} 8. cxd5 {[%clk
0:02:42.5]} 8... exd5 {[%clk 0:02:34.1]} 9. e3 {[%clk 0:02:43.5]} 9... Nc6
{[%clk 0:02:25.9]} 10. Bb5 {[%clk 0:02:38.9]} 10... h6 {[%clk 0:02:22.5]} 11.
Bxf6 {[%clk 0:02:38.9]} 11... Bxf6 {[%clk 0:02:22.7]} 12. O-O {[%clk 0:02:26]}
12... Bd7 {[%clk 0:01:48.7]} 13. Bxc6 {[%clk 0:02:11.5]} 13... bxc6 {[%clk
0:01:45.1]} 14. Nd4 {[%clk 0:02:08.8]} 14... Qxc5 {[%clk 0:01:40.7]} 15. Ne4
{[%clk 0:02:10.1]} 15... Qxc2 {[%clk 0:01:18.4]} 16. Nxf6+ {[%clk 0:02:10.8]}
16... gxf6 {[%clk 0:01:19.9]} 17. Nxc2 {[%clk 0:02:12.7]} 17... Rab8 {[%clk
0:01:19.3]} 18. b3 {[%clk 0:02:14.2]} 18... c5 {[%clk 0:01:18.9]} 19. Rfd1
{[%clk 0:02:14.1]} 19... Be6 {[%clk 0:01:19.6]} 20. Rac1 {[%clk 0:02:15]} 20...
a5 {[%clk 0:01:16.2]} 21. Ne1 {[%clk 0:01:49.4]} 21... c4 {[%clk 0:01:16.7]} 22.
bxc4 {[%clk 0:01:49.8]} 22... dxc4 {[%clk 0:01:17.4]} 23. Nf3 {[%clk 0:01:51.4]}
23... Rb2 {[%clk 0:01:12.6]} 24. Nd4 {[%clk 0:01:43.4]} 24... Rc8 {[%clk
0:01:06]} 25. a3 {[%clk 0:01:34]} 25... c3 {[%clk 0:00:45.8]} 26. Rc2 {[%clk
0:01:23.3]} 26... Rxc2 {[%clk 0:00:11.8]} 27. Nxc2 {[%clk 0:01:25.2]} 27... Bb3
{[%clk 0:00:09.4]} 28. Rc1 {[%clk 0:01:26.6]} 28... a4 {[%clk 0:00:09.9]} 29. f3
{[%clk 0:01:24.2]} 29... Kf8 {[%clk 0:00:08.7]} 30. Kf2 {[%clk 0:01:25]} 30...
Ke7 {[%clk 0:00:09.9]} 31. Ke2 {[%clk 0:01:26.3]} 31... Bc4+ {[%clk 0:00:08.7]}
32. Ke1 {[%clk 0:01:27.5]} 32... Bb3 {[%clk 0:00:03.6]} 33. Nd4 {[%clk
0:01:29.4]} 33... Kd6 {[%clk 0:00:03.3]} 34. Rxc3 {[%clk 0:01:25.4]} 1-0

[Event "*** Titled Tuesday 3|2 Blitz"]
[Site "Chess.com"]
[Date "2017.05.02"]
[Round "1"]
[White "Quiet_Desperation"]
[Black "Malev212"]
[Result "0-1"]
[WhiteElo "2164"]
[BlackElo "2486"]
[TimeControl "180+2"]
[EndTime "13:07:48 PDT"]
[Termination "Malev212 won by resignation"]

1. e4 {[%clk 0:03:00.8]} 1... g6 {[%clk 0:02:55.8]} 2. d4 {[%clk 0:03:01.5]}
2... Bg7 {[%clk 0:02:56.2]} 3. Nc3 {[%clk 0:03:01]} 3... c6 {[%clk 0:02:57.5]}
4. Nf3 {[%clk 0:03:00.1]} 4... d5 {[%clk 0:02:57.9]} 5. h3 {[%clk 0:02:56.3]}
5... Nh6 {[%clk 0:02:58.2]} 6. Bf4 {[%clk 0:02:54]} 6... f6 {[%clk 0:02:58.2]}
7. Qd2 {[%clk 0:02:54.9]} 7... Nf7 {[%clk 0:02:57.9]} 8. O-O-O {[%clk
0:02:55.3]} 8... O-O {[%clk 0:02:55.7]} 9. h4 {[%clk 0:02:49.8]} 9... Bg4 {[%clk
0:02:36.5]} 10. exd5 {[%clk 0:02:49.7]} 10... cxd5 {[%clk 0:02:34.8]} 11. Be2
{[%clk 0:02:47.7]} 11... Nc6 {[%clk 0:02:34.4]} 12. Kb1 {[%clk 0:02:45.4]} 12...
Rc8 {[%clk 0:02:32.2]} 13. Nh2 {[%clk 0:02:34.6]} 13... Bxe2 {[%clk 0:02:21.1]}
14. Qxe2 {[%clk 0:02:32.1]} 14... Na5 {[%clk 0:01:57]} 15. Rhe1 {[%clk
0:02:16.9]} 15... Rxc3 {[%clk 0:01:53.4]} 16. bxc3 {[%clk 0:02:15.2]} 16... e5
{[%clk 0:01:50.4]} 17. dxe5 {[%clk 0:02:12.5]} 17... fxe5 {[%clk 0:01:51]} 18.
Be3 {[%clk 0:02:12.1]} 18... Qd7 {[%clk 0:01:23.5]} 19. Bc5 {[%clk 0:02:01.4]}
19... Rc8 {[%clk 0:01:19.2]} 20. Bb4 {[%clk 0:02:02.4]} 20... Nc4 {[%clk
0:01:18.6]} 21. Qd3 {[%clk 0:01:45.5]} 21... a5 {[%clk 0:01:18]} 22. Qxd5 {[%clk
0:01:35.9]} 22... Qxd5 {[%clk 0:01:18.5]} 23. Rxd5 {[%clk 0:01:37]} 23... axb4
{[%clk 0:01:19.2]} 24. cxb4 {[%clk 0:01:38.9]} 24... Na3+ {[%clk 0:01:09.1]} 25.
Kb2 {[%clk 0:01:35.3]} 25... Nxc2 {[%clk 0:01:09.4]} 26. Rc1 {[%clk 0:01:29.1]}
26... e4+ {[%clk 0:01:10]} 27. Kb3 {[%clk 0:01:25]} 27... Rc3+ {[%clk 0:01:10]}
28. Ka4 {[%clk 0:01:20.2]} 28... Ra3+ {[%clk 0:00:59.1]} 29. Kb5 {[%clk
0:01:18.2]} 29... Rxa2 {[%clk 0:00:57.1]} 30. Rc5 {[%clk 0:01:15]} 30... Na3+
{[%clk 0:00:53.1]} 31. Kb6 {[%clk 0:01:16.5]} 31... Bd4 {[%clk 0:00:52.7]} 32.
Kxb7 {[%clk 0:01:16.9]} 32... Bxc5 {[%clk 0:00:52.4]} 33. bxc5 {[%clk
0:01:18.5]} 33... Rxf2 {[%clk 0:00:51.1]} 34. c6 {[%clk 0:01:17.7]} 34... Nb5
{[%clk 0:00:47.7]} 35. Ng4 {[%clk 0:01:14.1]} 35... Kg7 {[%clk 0:00:44.9]} 36.
Rc5 {[%clk 0:01:13.8]} 36... Rb2 {[%clk 0:00:42.4]} 37. Ka6 {[%clk 0:01:05.6]}
37... Nc7+ {[%clk 0:00:41.3]} 38. Ka5 {[%clk 0:01:05]} 38... Rxg2 {[%clk
0:00:36]} 39. Ne3 {[%clk 0:01:06.4]} 39... Rb2 {[%clk 0:00:35.7]} 40. Nd5 {[%clk
0:01:06.8]} 40... Nxd5 {[%clk 0:00:28.5]} 41. Rxd5 {[%clk 0:01:07.8]} 41... Rc2
{[%clk 0:00:28.3]} 42. Kb6 {[%clk 0:01:09]} 42... e3 {[%clk 0:00:29.2]} 43. Rd7
{[%clk 0:01:09.1]} 43... Kf6 {[%clk 0:00:29.2]} 44. c7 {[%clk 0:01:07.7]} 44...
e2 {[%clk 0:00:29.8]} 0-1

[Event "*** Titled Tuesday 3|2 Blitz"]
[Site "Chess.com"]
[Date "2017.05.02"]
[Round "1"]
[White "Vrolijk"]
[Black "IIIlllII1llIl"]
[Result "1-0"]
[WhiteElo "2311"]
[BlackElo "2550"]
[TimeControl "180+2"]
[EndTime "13:08:05 PDT"]
[Termination "Vrolijk won by resignation"]

1. d4 {[%clk 0:03:00.7]} 1... c5 {[%clk 0:02:59.5]} 2. d5 {[%clk 0:03:00.1]}
2... e6 {[%clk 0:03:00.8]} 3. c4 {[%clk 0:02:58.3]} 3... exd5 {[%clk 0:03:01.7]}
4. cxd5 {[%clk 0:03:00.2]} 4... d6 {[%clk 0:03:03.3]} 5. Nc3 {[%clk 0:02:57.2]}
5... g6 {[%clk 0:03:04.4]} 6. Nf3 {[%clk 0:02:47.8]} 6... Nf6 {[%clk 0:03:05.4]}
7. Bf4 {[%clk 0:02:47.6]} 7... Bg7 {[%clk 0:03:06.3]} 8. Qa4+ {[%clk 0:02:47.2]}
8... Bd7 {[%clk 0:03:07.1]} 9. Qb3 {[%clk 0:02:48.2]} 9... b5 {[%clk 0:03:07.6]}
10. Bxd6 {[%clk 0:02:47.6]} 10... Qb6 {[%clk 0:03:08]} 11. Be5 {[%clk
0:02:39.7]} 11... O-O {[%clk 0:03:00.5]} 12. e3 {[%clk 0:02:38.1]} 12... c4
{[%clk 0:02:59.6]} 13. Qc2 {[%clk 0:02:39.2]} 13... b4 {[%clk 0:02:59.1]} 14.
Nd1 {[%clk 0:02:37.5]} 14... Rc8 {[%clk 0:02:47.9]} 15. Bxc4 {[%clk 0:02:33.8]}
15... Bb5 {[%clk 0:02:38.6]} 16. b3 {[%clk 0:02:34.7]} 16... Bxc4 {[%clk
0:02:32]} 17. bxc4 {[%clk 0:02:36.6]} 17... Nxd5 {[%clk 0:02:30.3]} 18. Bxg7
{[%clk 0:02:30.4]} 18... Kxg7 {[%clk 0:02:32.2]} 19. O-O {[%clk 0:02:28.7]}
19... Nd7 {[%clk 0:02:22.3]} 20. Rb1 {[%clk 0:02:25]} 20... a5 {[%clk
0:02:13.2]} 21. Nb2 {[%clk 0:02:18.2]} 21... Nc3 {[%clk 0:02:10.3]} 22. Na4
{[%clk 0:02:15.7]} 22... Nxa4 {[%clk 0:02:10.3]} 23. Qxa4 {[%clk 0:02:17.6]}
23... Qc6 {[%clk 0:01:34.5]} 24. Qd1 {[%clk 0:01:59.6]} 24... Nb6 {[%clk
0:01:26]} 25. Qd4+ {[%clk 0:01:59.8]} 25... Qf6 {[%clk 0:01:26.5]} 26. c5 {[%clk
0:01:59.7]} 26... Na4 {[%clk 0:01:24.2]} 27. Rbc1 {[%clk 0:01:44.6]} 27... Nc3
{[%clk 0:01:23.3]} 28. Rc2 {[%clk 0:01:46]} 28... Rd8 {[%clk 0:00:39.4]} 29.
Qxf6+ {[%clk 0:01:43.6]} 29... Kxf6 {[%clk 0:00:41.3]} 30. Nd4 {[%clk
0:01:45.2]} 30... Rac8 {[%clk 0:00:38]} 31. c6 {[%clk 0:01:46.1]} 31... Ke5
{[%clk 0:00:37]} 32. f3 {[%clk 0:01:44.4]} 32... Rxd4 {[%clk 0:00:36.3]} 33.
exd4+ {[%clk 0:01:44.5]} 33... Kxd4 {[%clk 0:00:38.2]} 34. Rd2+ {[%clk
0:01:40.8]} 34... Kc4 {[%clk 0:00:39.1]} 35. Re1 {[%clk 0:01:40.8]} 35... Rxc6
{[%clk 0:00:39]} 36. Re7 {[%clk 0:01:38.7]} 36... a4 {[%clk 0:00:37.1]} 37. Rxf7
{[%clk 0:01:38]} 37... a3 {[%clk 0:00:32.4]} 38. Rxh7 {[%clk 0:01:35.1]} 38...
Nb1 {[%clk 0:00:20.6]} 39. Rh4+ {[%clk 0:01:24.6]} 39... Kb5 {[%clk 0:00:16.4]}
40. Rdd4 {[%clk 0:01:14.8]} 40... b3 {[%clk 0:00:14.3]} 41. Rb4+ {[%clk
0:01:14.8]} 41... Ka5 {[%clk 0:00:14]} 42. Rxb3 {[%clk 0:01:02.7]} 42... Rc1+
{[%clk 0:00:15.1]} 43. Kf2 {[%clk 0:01:03]} 43... g5 {[%clk 0:00:16.5]} 44. Rh8
{[%clk 0:01:00.3]} 44... Rc2+ {[%clk 0:00:14.9]} 45. Kg3 {[%clk 0:01:00.8]} 1-0